bitfinex-derivatives/quotes_ETHF0:USTF0_20210703
["timestamp","ask_amount","ask_price","bid_price","bid_amount"]
[1625292984700,1.36815458,2150.0,2148.6,7.41664]
[1625292984802,1.0,2149.9,2148.6,7.41664]
[1625292985554,2.36957895,2149.9,2148.6,7.41664]
[1625292985754,2.20527,2149.6,2149.5,2.20527]
[1625292985904,3.20527,2149.6,2149.5,2.20527]
[1625292987718,5.41054,2149.6,2149.5,2.20527]
[1625292987920,4.41054,2149.6,2149.5,2.20527]
[1625292989574,2.20527,2149.6,2149.5,2.20527]
[1625292989723,2.20527,2149.9,2149.5,2.20527]
[1625292989824,2.20527,2149.9,2149.5,5.84667]
[1625292989923,2.20527,2149.9,2149.8,39.7743]
[1625292991078,2.20527,2150.1,2149.8,39.7743]
[1625292991578,2.20527,2150.1,2149.9,16.874552]
[1625292991830,2.20527,2150.1,2150.0,4.41054]
[1625292991929,2.20527,2150.1,2150.0,7.16884]
[1625292992080,2.20527,2150.1,2150.0,24.00418]
[1625292992734,1.0,2150.8,2150.0,24.00418]
[1625292992883,1.0,2150.8,2150.1,5.0]
[1625292992985,1.36920016,2150.9,2150.1,5.0]
[1625292993186,1.37026802,2151.3,2150.2,16.747137]
[1625292993497,1.37026802,2151.3,2151.1,41.3404]
[1625292993587,1.37026802,2151.3,2151.1,2.8921]
[1625292993786,1.37026802,2151.3,2151.2,2.20527]
[1625292994137,1.37026802,2151.3,2151.2,55.47777]
[1625292994238,1.37026802,2151.3,2151.2,2.20527]
[1625292994690,1.91687387,2151.3,2151.2,2.20527]
[1625292994789,41.99317387,2151.3,2151.2,2.20527]
[1625292994989,41.99317387,2151.3,2150.1,15.1868]
[1625292995090,45.43737387,2151.3,2150.1,15.1868]
[1625292995807,2.20527,2150.9,2150.8,2.20527]
[1625292995905,3.20527,2150.9,2150.8,2.20527]
[1625292996156,10.23459938,2152.0,2150.8,2.20527]
[1625292996255,1.0,2151.9,2150.8,2.20527]
[1625292996356,1.0,2151.2,2150.8,2.20527]
[1625292997809,1.0,2151.2,2151.1,2.20527]
[1625292998160,1.0,2151.2,2150.8,2.20527]
[1625292999772,2.20527,2150.9,2150.8,2.20527]
[1625292999873,3.20527,2150.9,2150.8,2.20527]
[1625293000621,1.0,2150.9,2150.8,2.20527]
[1625293001625,2.20527,2151.3,2150.8,2.20527]
[1625293001775,1.0,2151.2,2150.8,2.20527]
[1625293001876,59.1224,2151.2,2150.8,2.20527]
[1625293002279,1.0,2151.2,2150.8,2.20527]
[1625293003788,1.0,2151.2,2151.1,2.20527]
[1625293004134,1.0,2151.3,2151.1,2.20527]
[1625293004236,2.20527,2151.4,2151.1,2.20527]
[1625293004886,1.36262048,2152.0,2151.1,2.20527]
[1625293005289,1.0,2151.9,2151.1,2.20527]
[1625293005791,3.20527,2151.9,2151.8,2.20527]
[1625293006845,3.20527,2151.9,2151.8,57.77107]
[1625293007004,3.20527,2151.9,2151.8,2.20527]
[1625293010009,3.20527,2151.9,2151.8,51.53967]
[1625293010109,2.20527,2151.9,2151.8,51.53967]
[1625293013883,1.0,2152.2,2152.1,2.20527]
[1625293014085,1.0,2152.2,2152.1,5.83187]
[1625293016036,1.0,2152.3,2152.1,5.83187]
[1625293016589,1.0,2152.3,2152.1,2.20527]
[1625293017788,1.0,2152.3,2152.1,5.80987]
[1625293019947,3.20527,2152.3,2152.1,5.80987]
[1625293022548,1.0,2153.4,2152.1,5.80987]
[1625293022647,44.2581,2153.5,2152.1,5.80987]
[1625293023803,1.0,2153.4,2152.1,5.80987]
[1625293024006,1.0,2152.2,2152.1,5.80987]
[1625293024409,1.0,2152.2,2152.1,3.6046]
[1625293024508,1.0,2152.2,2151.3,3.0037]
[1625293024610,1.0,2152.2,2150.4,2.5461]
[1625293025126,1.0,2152.0,2150.4,2.5461]
[1625293025725,1.0,2152.0,2151.0,15.1507]
[1625293025931,2.20527,2151.7,2151.6,2.20527]
[1625293026083,3.20527,2151.7,2151.6,2.20527]
[1625293030640,3.20527,2151.7,2151.4,2.6174]
[1625293030740,3.20527,2151.7,2151.3,2.20527]
[1625293031995,2.20527,2151.4,2151.3,2.20527]
[1625293032092,3.20527,2151.4,2151.3,2.20527]
[1625293042912,3.20527,2151.4,2151.2,2.20527]
[1625293044020,3.20527,2151.4,2151.3,2.20527]
[1625293051632,3.20527,2151.4,2151.3,4.79927]
[1625293052283,3.20527,2151.4,2151.3,60.52317]
[1625293052383,3.20527,2151.4,2151.3,4.79927]
[1625293052984,3.20527,2151.4,2151.3,51.52087]
[1625293053135,3.20527,2151.4,2151.3,4.79927]
[1625293053538,3.20527,2151.4,2149.2,2.29484336]
[1625293053687,5.62547,2151.4,2149.2,2.29484336]
[1625293053786,5.62547,2151.4,2149.7,14.6084]
[1625293054138,2.20527,2150.5,2150.4,2.20527]
[1625293054638,3.20527,2150.5,2150.4,2.20527]
[1625293056113,5.41054,2150.5,2150.4,2.20527]
[1625293056872,60.34844,2150.5,2150.4,2.20527]
[1625293056972,5.41054,2150.5,2150.4,2.20527]
[1625293062480,5.41054,2150.5,2149.7,14.6084]
[1625293064183,2.20527,2150.1,2150.0,2.20527]
[1625293064283,3.20527,2150.1,2150.0,2.20527]
[1625293065534,3.20527,2150.1,2149.7,14.6084]
[1625293066186,2.20527,2149.8,2149.7,14.6084]
[1625293066338,3.20527,2149.8,2149.7,14.6084]
[1625293066436,3.20527,2149.8,2149.5,2.20527]
[1625293068141,3.20527,2149.8,2149.3,2.20527]
[1625293068239,2.20527,2149.6,2149.3,2.20527]
[1625293069043,2.20527,2149.6,2149.5,45.8885]
[1625293069444,2.20527,2149.6,2149.3,2.20527]
[1625293070206,2.20527,2149.6,2149.3,4.41054]
[1625293073064,2.20527,2149.6,2149.3,5.7778135]
[1625293074577,2.20527,2149.6,2149.4,1.36742152]
[1625293076583,2.20527,2149.6,2149.5,1.36705278]
[1625293076685,2.20527,2149.8,2149.5,4.15735278]
[1625293076784,1.0,2150.8,2149.5,4.15735278]
[1625293076983,4.759,2151.2,2149.7,1.36637036]
[1625293077383,4.759,2151.2,2149.8,1.36606855]
[1625293077482,4.759,2151.2,2150.2,52.6808]
[1625293077632,4.759,2151.2,2150.2,55.1188]
[1625293077832,1.0,2151.1,2150.2,55.1188]
[1625293078083,1.0,2151.1,2150.2,2.438]
[1625293078285,2.20527,2150.6,2150.4,2.20527]
[1625293080289,4.41054,2150.6,2150.4,2.20527]
[1625293086017,4.41054,2150.6,2150.4,47.49317]
[1625293086216,4.41054,2150.6,2150.4,2.20527]
[1625293086971,4.41054,2150.6,2150.4,3.57323433]
[1625293088377,4.41054,2150.6,2150.5,1.91512456]
[1625293088679,1.37094091,2151.8,2150.5,1.91512456]
[1625293088932,1.37104673,2151.7,2150.5,1.91512456]
[1625293089231,1.37102698,2151.8,2150.6,1.36945265]
[1625293089432,1.0,2151.7,2150.6,1.36945265]
[1625293089533,1.0,2151.7,2150.7,1.37030997]
[1625293089633,1.0,2151.7,2150.7,4.65630997]
[1625293090234,1.0,2151.7,2150.7,3.286]
[1625293090335,2.20527,2151.3,2151.2,2.20527]
[1625293090435,3.20527,2151.3,2151.2,2.20527]
[1625293090888,2.20527,2151.3,2151.2,2.20527]
[1625293091289,2.20527,2151.3,2151.2,50.94567]
[1625293093244,2.20527,2151.3,2151.2,2.20527]
[1625293094848,2.20527,2151.3,2151.2,3.57347549]
[1625293095500,3.20527,2151.7,2151.2,3.57347549]
[1625293095599,2.20527,2151.7,2151.2,5.60107]
[1625293095898,2.20527,2151.7,2151.3,1.36727245]
[1625293096148,1.0,2152.1,2151.3,18.36910345]
[1625293096398,3.20527,2152.1,2152.0,4.41054]
[1625293096904,3.20527,2152.1,2152.0,2.20527]
[1625293103298,2.20527,2152.1,2152.0,2.20527]
[1625293103798,3.20527,2152.1,2152.0,2.20527]
[1625293104304,2.20527,2152.1,2152.0,2.20527]
[1625293104652,3.20527,2152.1,2152.0,2.20527]
[1625293104752,2.20527,2152.1,2152.0,2.20527]
[1625293108573,3.20527,2152.1,2152.0,2.20527]
[1625293108669,3.20527,2152.1,2151.2,1.36566101]
[1625293109074,3.20527,2152.1,2150.2,5.0]
[1625293109075,3.20527,2152.1,2151.0,15.5733]
[1625293109325,53.0132,2151.8,2151.0,15.5733]
[1625293109727,53.0132,2151.8,2151.0,16.93600337]
[1625293109826,3.20527,2152.1,2151.0,16.93600337]
[1625293110377,3.20527,2152.1,2151.0,59.69290337]
[1625293110478,2.20527,2151.6,2151.5,2.20527]
[1625293110586,2.20527,2151.6,2151.5,5.69997]
[1625293111691,1.0,2152.1,2151.5,5.69997]
[1625293112442,3.20527,2152.1,2152.0,2.20527]
[1625293116966,2.20527,2152.1,2152.0,2.20527]
[1625293117115,2.20527,2152.1,2152.0,4.57187]
[1625293117428,3.20527,2152.1,2152.0,4.57187]
[1625293117725,2.20527,2152.1,2152.0,4.57187]
[1625293118478,3.20527,2152.1,2152.0,4.57187]
[1625293126305,52.75837,2152.1,2152.0,4.57187]
[1625293126605,3.20527,2152.1,2152.0,4.57187]
[1625293130841,59.44457,2152.1,2152.0,4.57187]
[1625293130991,3.20527,2152.1,2152.0,4.57187]
[1625293132795,3.20527,2152.1,2152.0,2.20527]
[1625293133200,3.20527,2152.1,2151.5,2.20527]
[1625293133301,57.0813,2151.7,2151.0,16.93029816]
[1625293133399,58.0813,2151.7,2151.0,16.93029816]
[1625293133499,58.0813,2151.7,2151.0,15.5733]
[1625293134149,1.0,2151.7,2151.0,15.5733]
[1625293134649,2.20527,2151.2,2151.1,2.20527]
[1625293136651,4.41054,2151.2,2151.1,2.20527]
[1625293138558,4.41054,2151.2,2151.1,51.63187]
[1625293138708,4.41054,2151.2,2151.1,2.20527]
[1625293140713,5.41054,2151.2,2151.1,2.20527]
[1625293140915,5.41054,2151.2,2151.0,15.5733]
[1625293141220,5.41054,2151.2,2150.5,1.3590968]
[1625293141369,61.99774,2151.2,2150.5,1.3590968]
[1625293141576,61.99774,2151.2,2150.1,3.53365168]
[1625293141577,61.99774,2151.2,2150.2,1.3602388]
[1625293141676,7.73444,2151.2,2150.2,1.3602388]
[1625293142037,7.73444,2151.2,2150.1,1.36047548]
[1625293142628,7.73444,2151.2,2150.4,50.1704]
[1625293142730,2.20527,2150.5,2150.4,52.37567]
[1625293143333,1.0,2151.2,2150.4,52.37567]
[1625293143487,1.0,2151.4,2150.4,55.98157]
[1625293143942,1.0,2151.4,2150.5,16.97728]
[1625293144294,1.0,2151.4,2150.5,18.33615416]
[1625293144744,2.20527,2151.3,2151.2,2.20527]
[1625293146806,4.41054,2151.3,2151.2,2.20527]
[1625293151511,4.41054,2151.3,2151.2,5.54947]
[1625293159512,1.0,2151.6,2151.2,5.54947]
[1625293159616,1.36716031,2152.6,2151.2,5.54947]
[1625293159716,1.0,2152.3,2151.2,10.54947]
[1625293159964,1.36716031,2152.6,2151.2,10.54947]
[1625293160066,1.36742346,2153.0,2151.2,10.54947]
[1625293160312,1.36742346,2153.0,2151.3,16.88462]
[1625293160415,1.36742346,2153.0,2152.4,42.8605]
[1625293160516,1.36770317,2153.1,2152.4,45.2438]
[1625293160866,4.41054,2152.5,2152.4,45.2438]
[1625293161018,5.41054,2152.5,2152.4,2.3833]
[1625293161569,2.20527,2152.5,2152.4,2.3833]
[1625293162321,2.20527,2152.5,2152.2,2.20527]
[1625293162421,3.20527,2152.5,2152.2,2.20527]
[1625293162825,2.20527,2152.3,2152.2,2.20527]
[1625293164391,3.20527,2152.3,2152.2,2.20527]
[1625293164756,2.20527,2152.3,2152.2,2.20527]
[1625293164908,1.0,2152.4,2152.2,3.5651]
[1625293165008,1.0,2152.4,2152.2,1.3599]
[1625293165111,1.0,2152.4,2151.7,1.35757695]
[1625293165211,1.0,2152.4,2151.6,1.90060773]
[1625293165212,1.0,2152.4,2151.6,1.35806142]
[1625293165457,43.9427,2151.9,2151.6,1.35806142]
[1625293165563,1.0,2151.8,2151.3,1.35959511]
[1625293165711,5.86077,2152.5,2151.3,1.35959511]
[1625293165908,1.0,2152.4,2151.2,1.35969636]
[1625293166560,1.9199,2152.4,2151.2,1.35969636]
[1625293166660,1.37013607,2152.3,2151.1,1.3615079]
[1625293166809,40.4032,2151.2,2151.1,1.3615079]
[1625293166910,45.81374,2151.2,2151.1,1.3615079]
[1625293167161,45.81374,2151.2,2151.0,1.36189505]
[1625293167462,45.81374,2151.2,2150.9,3.56736684]
[1625293168263,45.81374,2151.2,2151.0,1.36221804]
[1625293168361,5.41054,2151.2,2151.0,1.36221804]
[1625293168569,5.41054,2151.2,2150.9,3.56878745]
[1625293168815,5.41054,2151.2,2151.0,1.36432995]
[1625293169065,5.41054,2151.2,2150.9,3.56977164]
[1625293170022,5.41054,2151.2,2151.0,1.36428553]
[1625293170823,5.41054,2151.2,2150.7,15.8130321]
[1625293170923,3.20527,2150.8,2150.7,15.8130321]
[1625293171474,3.20527,2150.8,2150.7,1.3654321]
[1625293171577,3.20527,2150.8,2150.6,1.91160495]
[1625293171578,3.20527,2150.8,2150.6,1.36560983]
[1625293172326,3.20527,2150.8,2150.7,1.36603223]
[1625293173432,3.20527,2150.8,2150.6,1.36629835]
[1625293173539,6.48307,2150.8,2150.6,1.36629835]
[1625293173881,6.48307,2150.8,2150.4,1.91281769]
[1625293173882,6.48307,2150.8,2150.4,1.36695546]
[1625293174182,6.48307,2150.8,2150.3,1.36721688]
[1625293174882,2.20527,2150.4,2150.3,1.36721688]
[1625293174981,3.20527,2150.4,2150.3,1.36721688]
[1625293175133,3.20527,2150.4,2150.2,1.3679751]
[1625293176134,3.20527,2150.4,2150.1,1.36834242]
[1625293176990,1.0,2150.1,2150.0,1.36815303]
[1625293177495,1.0,2150.1,2150.0,1.91534579]
[1625293177587,3.20527,2150.2,2150.0,1.91534579]
[1625293177689,3.20527,2150.2,2150.0,5.22014579]
[1625293178048,3.20527,2150.2,2150.1,1.91515937]
[1625293178491,3.20527,2150.2,2150.1,1.3676457]
[1625293178895,3.20527,2150.2,2150.1,1.91428429]
[1625293179246,3.20527,2150.2,2150.1,1.36744515]
[1625293179594,2.20527,2150.2,2150.1,1.36744515]
[1625293179856,2.20527,2150.2,2150.1,1.91353914]
[1625293182513,2.20527,2150.2,2150.1,1.36663727]
[1625293182712,3.20527,2150.2,2150.1,1.36663727]
[1625293184419,3.20527,2150.2,2150.0,1.36523193]
[1625293187084,3.20527,2150.2,2149.9,3.56991837]
[1625293188990,2.20527,2150.0,2149.9,3.56991837]
[1625293190291,2.20527,2150.0,2149.9,2.20527]
[1625293196168,3.20527,2150.0,2149.9,2.20527]
[1625293200232,2.20527,2150.0,2149.9,2.20527]
[1625293203840,2.20527,2150.0,2149.9,3.56580868]
[1625293203937,2.20527,2150.2,2149.9,3.56580868]
[1625293204088,2.20527,2150.2,2149.9,20.55503068]
[1625293204191,1.3674297,2151.9,2150.0,5.0]
[1625293204346,6.126356,2152.1,2150.1,1.35999304]
[1625293204446,4.732356,2152.1,2150.1,4.58649304]
[1625293204593,4.732356,2152.1,2150.2,5.0]
[1625293204698,3.365,2152.1,2150.9,1.3569741]
[1625293204796,1.0,2152.0,2150.9,4.8928741]
[1625293204898,1.36702224,2152.9,2151.3,41.5371]
[1625293205097,2.20527,2152.1,2151.8,4.64597]
[1625293205400,1.36702224,2152.9,2151.8,4.64597]
[1625293205750,1.0,2152.8,2151.8,4.64597]
[1625293206561,1.36678849,2153.4,2151.8,4.64597]
[1625293206812,1.0,2153.3,2151.8,4.64597]
[1625293207066,2.20527,2152.5,2151.8,4.64597]
[1625293207215,2.20527,2152.5,2151.8,2.20527]
[1625293207471,1.0,2152.4,2151.8,2.20527]
[1625293209085,2.20527,2151.9,2151.8,2.20527]
[1625293209435,2.20527,2151.9,2151.8,2.18027]
[1625293209786,3.20527,2151.9,2151.8,2.18027]
[1625293210637,3.20527,2151.9,2151.0,1.35606062]
[1625293210789,3.20527,2151.9,2150.9,1.35646343]
[1625293211089,2.20527,2151.3,2151.2,2.20527]
[1625293213147,4.41054,2151.3,2151.2,2.20527]
[1625293215975,5.41054,2151.3,2151.2,2.20527]
[1625293216425,4.41054,2151.3,2151.2,2.20527]
[1625293217175,4.41054,2151.3,2151.0,2.20527]
[1625293217578,5.41054,2151.3,2151.0,2.20527]
[1625293218325,4.41054,2151.3,2151.0,2.20527]
[1625293221484,5.41054,2151.3,2151.0,2.20527]
[1625293226188,5.41054,2151.3,2150.6,14.7144]
[1625293227139,3.20527,2151.3,2150.8,2.20527]
[1625293227542,3.20527,2151.3,2150.8,3.13487]
[1625293227640,3.20527,2151.3,2150.8,2.20527]
[1625293229142,3.20527,2150.9,2150.8,2.20527]
[1625293231605,2.20527,2150.9,2150.8,2.20527]
[1625293231853,2.20527,2151.3,2150.8,2.20527]
[1625293233157,2.20527,2151.3,2151.2,2.20527]
[1625293233966,3.20527,2151.3,2151.2,2.20527]
[1625293235080,3.20527,2151.3,2151.2,5.85957]
[1625293237241,3.20527,2151.3,2151.2,3.6543]
[1625293237341,3.20527,2151.3,2150.8,2.20527]
[1625293237645,48.31977,2151.3,2150.8,2.20527]
[1625293237994,3.20527,2151.3,2150.8,2.20527]
[1625293239148,2.20527,2150.9,2150.8,2.20527]
[1625293240053,3.20527,2151.3,2150.8,2.20527]
[1625293240054,2.20527,2151.3,2150.8,2.20527]
[1625293240156,2.20527,2151.3,2150.8,5.36947]
[1625293240654,2.20527,2151.3,2150.8,6.72234289]
[1625293241155,2.20527,2151.3,2151.2,2.20527]
[1625293245662,3.20527,2151.3,2151.2,2.20527]
[1625293246715,3.20527,2151.3,2150.8,3.55726945]
[1625293246816,3.20527,2151.3,2150.8,2.20527]
[1625293247217,2.20527,2150.9,2150.8,2.20527]
[1625293247366,3.20527,2150.9,2150.8,2.20527]
[1625293249670,2.20527,2150.9,2150.8,2.20527]
[1625293249973,3.20527,2150.9,2150.8,2.20527]
[1625293251644,2.20527,2150.9,2150.8,2.20527]
[1625293259674,3.20527,2150.9,2150.8,2.20527]
[1625293262491,2.20527,2150.9,2150.8,2.20527]
[1625293262940,2.20527,2150.9,2150.8,3.55740105]
[1625293263194,2.20527,2150.9,2150.8,4.09756748]
[1625293263894,2.20527,2151.3,2150.8,4.09756748]
[1625293264094,43.81998496,2152.3,2150.8,4.09756748]
[1625293264195,0.9305,2152.4,2150.8,4.09756748]
[1625293264294,1.368395,2152.6,2150.9,1.0]
[1625293264447,1.368395,2152.6,2150.9,2.35159342]
[1625293264949,1.368395,2152.6,2151.2,46.2327]
[1625293265147,1.368395,2152.6,2151.2,2.3681]
[1625293265349,2.20527,2151.7,2151.6,2.20527]
[1625293289515,2.20527,2151.7,2151.3,2.20527]
[1625293290115,2.20527,2151.7,2151.3,3.560806]
[1625293291468,2.20527,2151.4,2151.3,3.560806]
[1625293292921,2.20527,2151.4,2151.3,4.10989714]
[1625293293575,4.55467,2151.4,2151.3,1.90462714]
[1625293293723,4.55467,2151.4,2151.2,1.35955448]
[1625293294175,4.55467,2151.4,2150.9,1.35985974]
[1625293294276,56.3912,2151.0,2150.9,1.35985974]
[1625293294523,4.55467,2151.4,2150.9,1.35985974]
[1625293295477,2.20527,2151.0,2150.9,1.35985974]
[1625293295877,2.20527,2151.0,2150.8,1.36025913]
[1625293296777,2.20527,2151.0,2150.8,5.913e-05]
[1625293296976,2.20527,2151.0,2150.7,0.00012191]
[1625293297176,2.20527,2151.0,2150.6,2.71979172]
[1625293297430,2.20527,2150.7,2150.6,2.71979172]
[1625293297528,2.20527,2150.7,2150.2,2.72392341]
[1625293297678,5.11637,2150.7,2150.2,2.72392341]
[1625293297779,5.11637,2150.7,2149.8,5.74883225]
[1625293298130,5.11637,2150.7,2149.8,2.20527]
[1625293299430,4.41054,2149.9,2149.8,2.20527]
[1625293299532,7.88024,2149.9,2149.8,2.20527]
[1625293301538,7.88024,2149.9,2149.6,2.20527]
[1625293308972,7.88024,2149.9,2149.2,2.20527]
[1625293309624,2.20527,2149.3,2149.2,2.20527]
[1625293313811,1.0,2150.5,2149.2,2.20527]
[1625293313912,10.0,2409.0,2149.2,6.16817]
[1625293314014,1.0,2151.5,2149.2,6.16817]
[1625293314613,1.0,2151.6,2149.2,6.16817]
[1625293314716,6.0,2151.6,2149.2,6.16817]
[1625293315568,2.20527,2150.1,2150.0,2.20527]
[1625293317575,4.41054,2150.1,2150.0,2.20527]
[1625293321081,4.41054,2150.1,2150.0,51.66387]
[1625293322333,2.20527,2150.1,2150.0,51.66387]
[1625293322435,1.0,2151.2,2150.0,51.66387]
[1625293322535,16.0204,2151.8,2150.1,1.0]
[1625293322886,0.9327,2151.8,2150.1,1.0]
[1625293323586,2.20527,2150.6,2150.5,2.20527]
[1625293323687,2.20527,2150.6,2150.5,4.64347]
[1625293325644,4.41054,2150.6,2150.5,4.64347]
[1625293326302,4.41054,2150.6,2150.0,2.20527]
[1625293327658,2.20527,2150.1,2150.0,2.20527]
[1625293333232,2.20527,2150.6,2150.0,2.20527]
[1625293333333,2.20527,2150.6,2150.2,51.8903]
[1625293333634,4.41054,2150.6,2150.5,2.20527]
[1625293339410,4.41054,2150.6,2150.1,45.3052]
[1625293339508,4.41054,2150.6,2150.0,2.20527]
[1625293339710,2.20527,2150.1,2150.0,2.20527]
[1625293343868,2.20527,2150.6,2150.0,2.20527]
[1625293344728,2.20527,2150.6,2150.0,5.54857]
[1625293345730,2.20527,2150.6,2150.5,4.41054]
[1625293348137,2.20527,2150.6,2150.5,7.39524]
[1625293366312,2.20527,2150.8,2150.5,7.39524]
[1625293366713,0.9327,2151.8,2150.5,8.39524]
[1625293366862,3.55758549,2151.9,2150.5,8.39524]
[1625293367214,8.21156869,2152.7,2150.5,8.39524]
[1625293367215,8.31676745,2152.4,2150.5,8.39524]
[1625293367362,8.31676745,2152.4,2151.3,51.9404]
[1625293367462,8.31676745,2152.4,2151.3,55.526]
[1625293367614,4.759,2152.4,2151.3,55.526]
[1625293367816,2.20527,2151.7,2151.6,2.20527]
[1625293369819,4.41054,2151.7,2151.3,2.20527]
[1625293371870,4.41054,2151.7,2151.6,2.20527]
[1625293373274,4.41054,2151.7,2151.6,7e-05]
[1625293373374,45.21864,2151.7,2150.7,1.0]
[1625293373475,48.63124,2151.7,2150.1,14.6274]
[1625293373575,48.63124,2151.7,2150.2,1.0]
[1625293373825,2.20527,2150.7,2150.6,2.20527]
[1625293375828,4.41054,2150.7,2150.6,2.20527]
[1625293380799,4.41054,2150.7,2150.6,5.57167]
[1625293388426,31.7624998,2151.7,2150.6,5.57167]
[1625293388930,1.37736853,2151.6,2150.6,5.57167]
[1625293389938,2.20527,2151.1,2151.0,2.20527]
[1625293390489,2.20527,2151.1,2150.6,5.57167]
[1625293390692,41.9946,2150.9,2150.6,5.57167]
[1625293390791,2.20527,2151.1,2150.6,5.57167]
[1625293392041,4.41054,2151.1,2151.0,2.20527]
[1625293394751,55.17314,2151.1,2151.0,2.20527]
[1625293395051,4.41054,2151.1,2151.0,2.20527]
[1625293395502,3.56813267,2151.6,2151.0,5.56387]
[1625293395604,4.49547464,2151.8,2151.0,5.56387]
[1625293395955,2.20527,2151.6,2151.5,2.20527]
[1625293396054,2.20527,2151.6,2151.5,4.92737]
[1625293396605,2.20527,2151.6,2151.5,2.7221]
[1625293398009,4.41054,2151.6,2151.4,2.20527]
[1625293398264,56.2563,2151.5,2151.4,2.20527]
[1625293399776,4.41054,2151.6,2151.4,2.20527]
[1625293400878,4.41054,2151.6,2151.0,5.56387]
[1625293402041,2.20527,2151.1,2151.0,7.76914]
[1625293429529,49.95347,2151.1,2151.0,7.76914]
[1625293429878,2.20527,2151.1,2151.0,7.76914]
[1625293430438,4.41054,2151.1,2151.0,7.76914]
[1625293436157,49.45524,2151.1,2151.0,7.76914]
[1625293436659,52.42904,2151.1,2150.4,2.73504181]
[1625293437011,52.42904,2151.1,2150.0,1.0]
[1625293437012,55.17702657,2151.1,2150.1,2.73782936]
[1625293437862,2.74815388,2151.0,2150.1,2.73782936]
[1625293438113,52.20327724,2151.1,2150.2,2.73740306]
[1625293438214,52.20327724,2151.1,2150.2,5.63080306]
[1625293438413,2.20527,2150.5,2150.4,2.20527]
[1625293440484,4.41054,2150.5,2150.4,2.20527]
[1625293445495,4.41054,2150.5,2150.4,5.10607]
[1625293453262,2.20527,2150.5,2150.4,5.10607]
[1625293453418,2.74899736,2151.2,2150.4,5.10607]
[1625293454068,2.74899736,2151.2,2150.4,7.84456531]
[1625293454478,2.20527,2151.1,2150.9,2.20527]
[1625293454578,2.20527,2151.1,2150.9,4.96667]
[1625293456497,4.41054,2151.1,2150.9,4.96667]
[1625293457950,61.72544,2151.1,2150.9,4.96667]
[1625293458703,64.47482331,2151.1,2150.9,4.96667]
[1625293459660,7.15992331,2151.1,2150.9,4.96667]
[1625293460562,7.15992331,2151.1,2151.0,2.20527]
[1625293461111,8.53736509,2151.1,2151.0,2.20527]
[1625293461464,56.70356509,2151.1,2150.4,5.64140424]
[1625293461563,8.53736509,2151.1,2150.4,5.64140424]
[1625293461812,7.15992331,2151.1,2150.4,5.64140424]
[1625293462564,7.15992331,2151.1,2151.0,5.91157]
[1625293462964,8.5373702,2151.1,2151.0,5.91157]
[1625293464169,64.3098702,2151.1,2151.0,5.91157]
[1625293466840,8.5373702,2151.1,2151.0,5.91157]
[1625293469794,55.4063702,2151.1,2151.0,5.91157]
[1625293469995,8.5373702,2151.1,2151.0,5.91157]
[1625293471152,50.5375702,2151.1,2151.0,5.91157]
[1625293472003,8.5373702,2151.1,2151.0,5.91157]
[1625293472704,5.78798689,2151.1,2151.0,5.91157]
[1625293473153,5.78798689,2151.1,2150.7,2.20527]
[1625293473355,2.75007813,2151.0,2150.7,2.20527]
[1625293473456,2.75007813,2151.0,2150.2,2.73765462]
[1625293474509,1.37754678,2150.9,2150.2,2.73765462]
[1625293474660,2.20527,2150.6,2150.5,2.20527]
[1625293480445,46.90997,2150.6,2150.5,2.20527]
[1625293481699,2.20527,2150.6,2150.5,2.20527]
[1625293482650,57.80553537,2150.9,2150.2,1.91597071]
[1625293483100,2.20527,2150.8,2150.7,2.20527]
[1625293485158,4.41054,2150.8,2150.7,2.20527]
[1625293485406,60.31064,2150.8,2150.7,2.20527]
[1625293486160,62.23506635,2150.8,2150.7,2.20527]
[1625293487013,62.23506635,2150.8,2150.4,2.20527]
[1625293487112,2.20527,2150.5,2150.4,2.20527]
[1625293487211,51.38067,2150.5,2150.4,2.20527]
[1625293487312,2.20527,2150.5,2150.4,2.20527]
[1625293491769,3.12857,2150.5,2150.4,2.20527]
[1625293491921,55.19787,2150.5,2150.4,2.20527]
[1625293493421,58.96067,2150.5,2150.4,2.20527]
[1625293493520,58.96067,2150.5,2150.4,0.80827]
[1625293493622,58.96067,2150.5,2150.1,2.20527]
[1625293494125,1.92411838,2150.4,2150.1,2.20527]
[1625293495176,2.20527,2150.2,2150.1,2.20527]
[1625293504873,1.92204042,2150.6,2150.1,2.20527]
[1625293504971,1.92204042,2150.6,2150.1,5.46277]
[1625293505074,1.92184174,2150.8,2150.1,5.46277]
[1625293505271,1.92184174,2150.8,2150.7,4.41054]
[1625293505372,2.7454882,2150.9,2150.7,4.41054]
[1625293505373,1.92176807,2150.9,2150.7,7.94144]
[1625293506172,4.12703631,2151.0,2150.7,7.94144]
[1625293508579,4.12703631,2151.0,2150.7,3.5309]
[1625293508782,45.808,2150.7,2150.1,3.2575]
[1625293509229,4.12703631,2151.0,2150.1,3.2575]
[1625293509381,2.20527,2150.5,2150.4,2.20527]
[1625293511296,4.41054,2150.5,2150.4,2.20527]
[1625293515354,52.48964,2150.5,2150.4,2.20527]
[1625293515704,4.41054,2150.5,2150.4,2.20527]
[1625293516657,53.34694,2150.5,2150.4,2.20527]
[1625293518166,55.26974036,2150.5,2150.4,2.20527]
[1625293518619,53.34694,2150.5,2150.4,2.20527]
[1625293518969,4.41054,2150.5,2150.4,2.20527]
[1625293519071,4.41054,2150.5,2150.4,4.77947]
[1625293520020,5.34214,2150.5,2150.4,4.77947]
[1625293520320,45.46544,2150.5,2150.4,4.77947]
[1625293522795,5.34214,2150.5,2150.4,4.77947]